Workbook

Sheet KSPS Single Dilution

Sheet Results
D2: Kinase Selectivity Profiling Systems (KPS)
D3: Single Dose Data Analysis Workbook
A6: Luminescence
B7: Emission Filter: | D7: None
B8: Integration Time(s): | D8: 0.3
B9: Reading: | D9: 1 | F9: 1 | G9: 2 | H9: 3 | I9: 4 | J9: 5 | K9: 6 | L9: 7 | M9: 8 | N9: 9 | O9: 10 | P9: 11 | Q9: 12 | R9: 13 | S9: 14 | T9: 15 | U9: 16 | V9: 17 | W9: 18 | X9: 19 | Y9: 20 | Z9: 21 | AA9: 22 | AB9: 23 | AC9: 24
E10: A | F10: 5336 | G10: 28755 | H10: 16358 | I10: 6854 | J10: 30477 | K10: 35653 | L10: 35381 | M10: 34482 | N10: 40545 | O10: 33431 | P10: 27640 | Q10: 21321 | R10: 5336 | S10: 28755 | T10: 16358 | U10: 6854 | V10: 30477 | W10: 35653 | X10: 35381 | Y10: 34482 | Z10: 40545 | AA10: 33431 | AB10: 27640 | AC10: 21321
E11: B | F11: 5212 | G11: 31873 | H11: 18043 | I11: 6694 | J11: 30039 | K11: 34597 | L11: 34900 | M11: 33180 | N11: 35313 | O11: 35285 | P11: 34633 | Q11: 25905 | R11: 5212 | S11: 31873 | T11: 18043 | U11: 6694 | V11: 30039 | W11: 34597 | X11: 34900 | Y11: 33180 | Z11: 35313 | AA11: 35285 | AB11: 34633 | AC11: 25905
E12: C | F12: 5977 | G12: 25497 | H12: 10871 | I12: 7593 | J12: 37346 | K12: 25879 | L12: 26630 | M12: 28640 | N12: 26515 | O12: 32317 | P12: 28994 | Q12: 10531 | R12: 5977 | S12: 25497 | T12: 10871 | U12: 7593 | V12: 37346 | W12: 25879 | X12: 26630 | Y12: 28640 | Z12: 26515 | AA12: 32317 | AB12: 28994 | AC12: 10531
E13: D | F13: 4980 | G13: 23707 | H13: 10605 | I13: 7887 | J13: 35353 | K13: 24917 | L13: 26269 | M13: 26271 | N13: 26158 | O13: 32846 | P13: 28094 | Q13: 10635 | R13: 4980 | S13: 23707 | T13: 10605 | U13: 7887 | V13: 35353 | W13: 24917 | X13: 26269 | Y13: 26271 | Z13: 26158 | AA13: 32846 | AB13: 28094 | AC13: 10635
E14: E | F14: 5947 | G14: 37770 | H14: 35486 | I14: 33059 | J14: 21136 | K14: 41829 | L14: 42594 | M14: 42189 | N14: 59399 | O14: 38591 | P14: 40076 | Q14: 38064 | R14: 5947 | S14: 37770 | T14: 35486 | U14: 33059 | V14: 21136 | W14: 41829 | X14: 42594 | Y14: 42189 | Z14: 59399 | AA14: 38591 | AB14: 40076 | AC14: 38064
E15: F | F15: 8241 | G15: 39617 | H15: 34004 | I15: 27672 | J15: 21291 | K15: 42187 | L15: 58483 | M15: 43238 | N15: 41205 | O15: 39209 | P15: 41472 | Q15: 35357 | R15: 8241 | S15: 39617 | T15: 34004 | U15: 27672 | V15: 21291 | W15: 42187 | X15: 58483 | Y15: 43238 | Z15: 41205 | AA15: 39209 | AB15: 41472 | AC15: 35357
E16: G | F16: 5098 | G16: 94638 | H16: 37300 | I16: 101670 | J16: 97842 | K16: 101414 | L16: 94104 | M16: 106761 | N16: 100309 | O16: 100013 | P16: 102287 | Q16: 32611 | R16: 5098 | S16: 94638 | T16: 37300 | U16: 101670 | V16: 97842 | W16: 101414 | X16: 94104 | Y16: 106761 | Z16: 100309 | AA16: 100013 | AB16: 102287 | AC16: 32611
E17: H | F17: 4354 | G17: 90703 | H17: 60586 | I17: 95523 | J17: 92547 | K17: 96864 | L17: 90352 | M17: 99404 | N17: 97418 | O17: 98181 | P17: 107731 | Q17: 32657 | R17: 4354 | S17: 90703 | T17: 60586 | U17: 95523 | V17: 92547 | W17: 96864 | X17: 90352 | Y17: 99404 | Z17: 97418 | AA17: 98181 | AB17: 107731 | AC17: 32657
E18: I | F18: 5416 | G18: 7813 | H18: 5406 | I18: 7951 | J18: 7651 | K18: 7645 | L18: 7448 | M18: 7823 | N18: 7817 | O18: 7821 | P18: 8035 | Q18: 5042 | R18: 5416 | S18: 7813 | T18: 5406 | U18: 7951 | V18: 7651 | W18: 7645 | X18: 7448 | Y18: 7823 | Z18: 7817 | AA18: 7821 | AB18: 8035 | AC18: 5042
E19: J | F19: 5116 | G19: 7661 | H19: 5094 | I19: 7470 | J19: 7701 | K19: 7869 | L19: 7496 | M19: 7542 | N19: 7593 | O19: 7290 | P19: 7781 | Q19: 4710 | R19: 5116 | S19: 7661 | T19: 5094 | U19: 7470 | V19: 7701 | W19: 7869 | X19: 7496 | Y19: 7542 | Z19: 7593 | AA19: 7290 | AB19: 7781 | AC19: 4710
E20: K | F20: 6053 | G20: 136859 | H20: 6343 | I20: 111985 | J20: 118001 | K20: 116802 | L20: 71996 | M20: 117205 | N20: 119272 | O20: 14093 | P20: 116285 | Q20: 5871 | R20: 6053 | S20: 136859 | T20: 6343 | U20: 111985 | V20: 118001 | W20: 116802 | X20: 71996 | Y20: 117205 | Z20: 119272 | AA20: 14093 | AB20: 116285 | AC20: 5871
E21: L | F21: 5615 | G21: 117189 | H21: 5883 | I21: 100346 | J21: 108365 | K21: 114500 | L21: 72726 | M21: 116849 | N21: 118712 | O21: 12522 | P21: 117895 | Q21: 5669 | R21: 5615 | S21: 117189 | T21: 5883 | U21: 100346 | V21: 108365 | W21: 114500 | X21: 72726 | Y21: 116849 | Z21: 118712 | AA21: 12522 | AB21: 117895 | AC21: 5669
E22: M | F22: 5841 | G22: 69936 | H22: 5054 | I22: 36115 | J22: 7100 | K22: 61232 | L22: 42141 | M22: 54311 | N22: 24413 | O22: 5723 | P22: 63182 | Q22: 4656 | R22: 5841 | S22: 69936 | T22: 5054 | U22: 36115 | V22: 7100 | W22: 61232 | X22: 42141 | Y22: 54311 | Z22: 24413 | AA22: 5723 | AB22: 63182 | AC22: 4656
E23: N | F23: 5230 | G23: 69778 | H23: 5124 | I23: 46075 | J23: 6720 | K23: 60182 | L23: 45904 | M23: 57718 | N23: 46369 | O23: 5304 | P23: 61187 | Q23: 5230 | R23: 5230 | S23: 69778 | T23: 5124 | U23: 46075 | V23: 6720 | W23: 60182 | X23: 45904 | Y23: 57718 | Z23: 46369 | AA23: 5304 | AB23: 61187 | AC23: 5230
E24: O | F24: 6095 | G24: 89140 | H24: 4620 | I24: 34183 | J24: 5512 | K24: 71482 | L24: 44134 | M24: 61773 | N24: 27708 | O24: 5470 | P24: 67024 | Q24: 4318 | R24: 6095 | S24: 89140 | T24: 4620 | U24: 34183 | V24: 5512 | W24: 71482 | X24: 44134 | Y24: 61773 | Z24: 27708 | AA24: 5470 | AB24: 67024 | AC24: 4318
E25: P | F25: 5621 | G25: 84570 | H25: 4812 | I25: 51856 | J25: 5821 | K25: 77287 | L25: 68196 | M25: 58408 | N25: 51378 | O25: 5729 | P25: 76652 | Q25: 4558 | R25: 5621 | S25: 84570 | T25: 4812 | U25: 51856 | V25: 5821 | W25: 77287 | X25: 68196 | Y25: 58408 | Z25: 51378 | AA25: 5729 | AB25: 76652 | AC25: 4558
A30: Kit Analysis
B31: # of Inhibitors
B32: KPS
B43: # of Inhibitors
B44: KPS

Sheet Statistical Analysis
B4: Raw Data:
D5: 1 | E5: 2 | F5: 3 | G5: 4 | H5: 5 | I5: 6 | J5: 7 | K5: 8 | L5: 9 | M5: 10 | N5: 11 | O5: 12 | P5: 13 | Q5: 14 | R5: 15 | S5: 16 | T5: 17 | U5: 18 | V5: 19 | W5: 20 | X5: 21 | Y5: 22 | Z5: 23 | AA5: 24
C6: A | D6: =Results!F10 -> 5336 | E6: =Results!G10 -> 28755 | F6: =Results!H10 -> 16358 | G6: =Results!I10 -> 6854 | H6: =Results!J10 -> 30477 | I6: =Results!K10 -> 35653 | J6: =Results!L10 -> 35381 | K6: =Results!M10 -> 34482 | L6: =Results!N10 -> 40545 | M6: =Results!O10 -> 33431 | N6: =Results!P10 -> 27640 | O6: =Results!Q10 -> 21321 | P6: =Results!R10 -> 5336 | Q6: =Results!S10 -> 28755 | R6: =Results!T10 -> 16358 | S6: =Results!U10 -> 6854 | T6: =Results!V10 -> 30477 | U6: =Results!W10 -> 35653 | V6: =Results!X10 -> 35381 | W6: =Results!Y10 -> 34482 | X6: =Results!Z10 -> 40545 | Y6: =Results!AA10 -> 33431 | Z6: =Results!AB10 -> 27640 | AA6: =Results!AC10 -> 21321
C7: B | D7: =Results!F11 -> 5212 | E7: =Results!G11 -> 31873 | F7: =Results!H11 -> 18043 | G7: =Results!I11 -> 6694 | H7: =Results!J11 -> 30039 | I7: =Results!K11 -> 34597 | J7: =Results!L11 -> 34900 | K7: =Results!M11 -> 33180 | L7: =Results!N11 -> 35313 | M7: =Results!O11 -> 35285 | N7: =Results!P11 -> 34633 | O7: =Results!Q11 -> 25905 | P7: =Results!R11 -> 5212 | Q7: =Results!S11 -> 31873 | R7: =Results!T11 -> 18043 | S7: =Results!U11 -> 6694 | T7: =Results!V11 -> 30039 | U7: =Results!W11 -> 34597 | V7: =Results!X11 -> 34900 | W7: =Results!Y11 -> 33180 | X7: =Results!Z11 -> 35313 | Y7: =Results!AA11 -> 35285 | Z7: =Results!AB11 -> 34633 | AA7: =Results!AC11 -> 25905
C8: C | D8: =Results!F12 -> 5977 | E8: =Results!G12 -> 25497 | F8: =Results!H12 -> 10871 | G8: =Results!I12 -> 7593 | H8: =Results!J12 -> 37346 | I8: =Results!K12 -> 25879 | J8: =Results!L12 -> 26630 | K8: =Results!M12 -> 28640 | L8: =Results!N12 -> 26515 | M8: =Results!O12 -> 32317 | N8: =Results!P12 -> 28994 | O8: =Results!Q12 -> 10531 | P8: =Results!R12 -> 5977 | Q8: =Results!S12 -> 25497 | R8: =Results!T12 -> 10871 | S8: =Results!U12 -> 7593 | T8: =Results!V12 -> 37346 | U8: =Results!W12 -> 25879 | V8: =Results!X12 -> 26630 | W8: =Results!Y12 -> 28640 | X8: =Results!Z12 -> 26515 | Y8: =Results!AA12 -> 32317 | Z8: =Results!AB12 -> 28994 | AA8: =Results!AC12 -> 10531
C9: D | D9: =Results!F13 -> 4980 | E9: =Results!G13 -> 23707 | F9: =Results!H13 -> 10605 | G9: =Results!I13 -> 7887 | H9: =Results!J13 -> 35353 | I9: =Results!K13 -> 24917 | J9: =Results!L13 -> 26269 | K9: =Results!M13 -> 26271 | L9: =Results!N13 -> 26158 | M9: =Results!O13 -> 32846 | N9: =Results!P13 -> 28094 | O9: =Results!Q13 -> 10635 | P9: =Results!R13 -> 4980 | Q9: =Results!S13 -> 23707 | R9: =Results!T13 -> 10605 | S9: =Results!U13 -> 7887 | T9: =Results!V13 -> 35353 | U9: =Results!W13 -> 24917 | V9: =Results!X13 -> 26269 | W9: =Results!Y13 -> 26271 | X9: =Results!Z13 -> 26158 | Y9: =Results!AA13 -> 32846 | Z9: =Results!AB13 -> 28094 | AA9: =Results!AC13 -> 10635
C10: E | D10: =Results!F14 -> 5947 | E10: =Results!G14 -> 37770 | F10: =Results!H14 -> 35486 | G10: =Results!I14 -> 33059 | H10: =Results!J14 -> 21136 | I10: =Results!K14 -> 41829 | J10: =Results!L14 -> 42594 | K10: =Results!M14 -> 42189 | L10: =Results!N14 -> 59399 | M10: =Results!O14 -> 38591 | N10: =Results!P14 -> 40076 | O10: =Results!Q14 -> 38064 | P10: =Results!R14 -> 5947 | Q10: =Results!S14 -> 37770 | R10: =Results!T14 -> 35486 | S10: =Results!U14 -> 33059 | T10: =Results!V14 -> 21136 | U10: =Results!W14 -> 41829 | V10: =Results!X14 -> 42594 | W10: =Results!Y14 -> 42189 | X10: =Results!Z14 -> 59399 | Y10: =Results!AA14 -> 38591 | Z10: =Results!AB14 -> 40076 | AA10: =Results!AC14 -> 38064
C11: F | D11: =Results!F15 -> 8241 | E11: =Results!G15 -> 39617 | F11: =Results!H15 -> 34004 | G11: =Results!I15 -> 27672 | H11: =Results!J15 -> 21291 | I11: =Results!K15 -> 42187 | J11: =Results!L15 -> 58483 | K11: =Results!M15 -> 43238 | L11: =Results!N15 -> 41205 | M11: =Results!O15 -> 39209 | N11: =Results!P15 -> 41472 | O11: =Results!Q15 -> 35357 | P11: =Results!R15 -> 8241 | Q11: =Results!S15 -> 39617 | R11: =Results!T15 -> 34004 | S11: =Results!U15 -> 27672 | T11: =Results!V15 -> 21291 | U11: =Results!W15 -> 42187 | V11: =Results!X15 -> 58483 | W11: =Results!Y15 -> 43238 | X11: =Results!Z15 -> 41205 | Y11: =Results!AA15 -> 39209 | Z11: =Results!AB15 -> 41472 | AA11: =Results!AC15 -> 35357
C12: G | D12: =Results!F16 -> 5098 | E12: =Results!G16 -> 94638 | F12: =Results!H16 -> 37300 | G12: =Results!I16 -> 101670 | H12: =Results!J16 -> 97842 | I12: =Results!K16 -> 101414 | J12: =Results!L16 -> 94104 | K12: =Results!M16 -> 106761 | L12: =Results!N16 -> 100309 | M12: =Results!O16 -> 100013 | N12: =Results!P16 -> 102287 | O12: =Results!Q16 -> 32611 | P12: =Results!R16 -> 5098 | Q12: =Results!S16 -> 94638 | R12: =Results!T16 -> 37300 | S12: =Results!U16 -> 101670 | T12: =Results!V16 -> 97842 | U12: =Results!W16 -> 101414 | V12: =Results!X16 -> 94104 | W12: =Results!Y16 -> 106761 | X12: =Results!Z16 -> 100309 | Y12: =Results!AA16 -> 100013 | Z12: =Results!AB16 -> 102287 | AA12: =Results!AC16 -> 32611
C13: H | D13: =Results!F17 -> 4354 | E13: =Results!G17 -> 90703 | F13: =Results!H17 -> 60586 | G13: =Results!I17 -> 95523 | H13: =Results!J17 -> 92547 | I13: =Results!K17 -> 96864 | J13: =Results!L17 -> 90352 | K13: =Results!M17 -> 99404 | L13: =Results!N17 -> 97418 | M13: =Results!O17 -> 98181 | N13: =Results!P17 -> 107731 | O13: =Results!Q17 -> 32657 | P13: =Results!R17 -> 4354 | Q13: =Results!S17 -> 90703 | R13: =Results!T17 -> 60586 | S13: =Results!U17 -> 95523 | T13: =Results!V17 -> 92547 | U13: =Results!W17 -> 96864 | V13: =Results!X17 -> 90352 | W13: =Results!Y17 -> 99404 | X13: =Results!Z17 -> 97418 | Y13: =Results!AA17 -> 98181 | Z13: =Results!AB17 -> 107731 | AA13: =Results!AC17 -> 32657
C14: I | D14: =Results!F18 -> 5416 | E14: =Results!G18 -> 7813 | F14: =Results!H18 -> 5406 | G14: =Results!I18 -> 7951 | H14: =Results!J18 -> 7651 | I14: =Results!K18 -> 7645 | J14: =Results!L18 -> 7448 | K14: =Results!M18 -> 7823 | L14: =Results!N18 -> 7817 | M14: =Results!O18 -> 7821 | N14: =Results!P18 -> 8035 | O14: =Results!Q18 -> 5042 | P14: =Results!R18 -> 5416 | Q14: =Results!S18 -> 7813 | R14: =Results!T18 -> 5406 | S14: =Results!U18 -> 7951 | T14: =Results!V18 -> 7651 | U14: =Results!W18 -> 7645 | V14: =Results!X18 -> 7448 | W14: =Results!Y18 -> 7823 | X14: =Results!Z18 -> 7817 | Y14: =Results!AA18 -> 7821 | Z14: =Results!AB18 -> 8035 | AA14: =Results!AC18 -> 5042
C15: J | D15: =Results!F19 -> 5116 | E15: =Results!G19 -> 7661 | F15: =Results!H19 -> 5094 | G15: =Results!I19 -> 7470 | H15: =Results!J19 -> 7701 | I15: =Results!K19 -> 7869 | J15: =Results!L19 -> 7496 | K15: =Results!M19 -> 7542 | L15: =Results!N19 -> 7593 | M15: =Results!O19 -> 7290 | N15: =Results!P19 -> 7781 | O15: =Results!Q19 -> 4710 | P15: =Results!R19 -> 5116 | Q15: =Results!S19 -> 7661 | R15: =Results!T19 -> 5094 | S15: =Results!U19 -> 7470 | T15: =Results!V19 -> 7701 | U15: =Results!W19 -> 7869 | V15: =Results!X19 -> 7496 | W15: =Results!Y19 -> 7542 | X15: =Results!Z19 -> 7593 | Y15: =Results!AA19 -> 7290 | Z15: =Results!AB19 -> 7781 | AA15: =Results!AC19 -> 4710
C16: K | D16: =Results!F20 -> 6053 | E16: =Results!G20 -> 136859 | F16: =Results!H20 -> 6343 | G16: =Results!I20 -> 111985 | H16: =Results!J20 -> 118001 | I16: =Results!K20 -> 116802 | J16: =Results!L20 -> 71996 | K16: =Results!M20 -> 117205 | L16: =Results!N20 -> 119272 | M16: =Results!O20 -> 14093 | N16: =Results!P20 -> 116285 | O16: =Results!Q20 -> 5871 | P16: =Results!R20 -> 6053 | Q16: =Results!S20 -> 136859 | R16: =Results!T20 -> 6343 | S16: =Results!U20 -> 111985 | T16: =Results!V20 -> 118001 | U16: =Results!W20 -> 116802 | V16: =Results!X20 -> 71996 | W16: =Results!Y20 -> 117205 | X16: =Results!Z20 -> 119272 | Y16: =Results!AA20 -> 14093 | Z16: =Results!AB20 -> 116285 | AA16: =Results!AC20 -> 5871
C17: L | D17: =Results!F21 -> 5615 | E17: =Results!G21 -> 117189 | F17: =Results!H21 -> 5883 | G17: =Results!I21 -> 100346 | H17: =Results!J21 -> 108365 | I17: =Results!K21 -> 114500 | J17: =Results!L21 -> 72726 | K17: =Results!M21 -> 116849 | L17: =Results!N21 -> 118712 | M17: =Results!O21 -> 12522 | N17: =Results!P21 -> 117895 | O17: =Results!Q21 -> 5669 | P17: =Results!R21 -> 5615 | Q17: =Results!S21 -> 117189 | R17: =Results!T21 -> 5883 | S17: =Results!U21 -> 100346 | T17: =Results!V21 -> 108365 | U17: =Results!W21 -> 114500 | V17: =Results!X21 -> 72726 | W17: =Results!Y21 -> 116849 | X17: =Results!Z21 -> 118712 | Y17: =Results!AA21 -> 12522 | Z17: =Results!AB21 -> 117895 | AA17: =Results!AC21 -> 5669
C18: M | D18: =Results!F22 -> 5841 | E18: =Results!G22 -> 69936 | F18: =Results!H22 -> 5054 | G18: =Results!I22 -> 36115 | H18: =Results!J22 -> 7100 | I18: =Results!K22 -> 61232 | J18: =Results!L22 -> 42141 | K18: =Results!M22 -> 54311 | L18: =Results!N22 -> 24413 | M18: =Results!O22 -> 5723 | N18: =Results!P22 -> 63182 | O18: =Results!Q22 -> 4656 | P18: =Results!R22 -> 5841 | Q18: =Results!S22 -> 69936 | R18: =Results!T22 -> 5054 | S18: =Results!U22 -> 36115 | T18: =Results!V22 -> 7100 | U18: =Results!W22 -> 61232 | V18: =Results!X22 -> 42141 | W18: =Results!Y22 -> 54311 | X18: =Results!Z22 -> 24413 | Y18: =Results!AA22 -> 5723 | Z18: =Results!AB22 -> 63182 | AA18: =Results!AC22 -> 4656
C19: N | D19: =Results!F23 -> 5230 | E19: =Results!G23 -> 69778 | F19: =Results!H23 -> 5124 | G19: =Results!I23 -> 46075 | H19: =Results!J23 -> 6720 | I19: =Results!K23 -> 60182 | J19: =Results!L23 -> 45904 | K19: =Results!M23 -> 57718 | L19: =Results!N23 -> 46369 | M19: =Results!O23 -> 5304 | N19: =Results!P23 -> 61187 | O19: =Results!Q23 -> 5230 | P19: =Results!R23 -> 5230 | Q19: =Results!S23 -> 69778 | R19: =Results!T23 -> 5124 | S19: =Results!U23 -> 46075 | T19: =Results!V23 -> 6720 | U19: =Results!W23 -> 60182 | V19: =Results!X23 -> 45904 | W19: =Results!Y23 -> 57718 | X19: =Results!Z23 -> 46369 | Y19: =Results!AA23 -> 5304 | Z19: =Results!AB23 -> 61187 | AA19: =Results!AC23 -> 5230
C20: O | D20: =Results!F24 -> 6095 | E20: =Results!G24 -> 89140 | F20: =Results!H24 -> 4620 | G20: =Results!I24 -> 34183 | H20: =Results!J24 -> 5512 | I20: =Results!K24 -> 71482 | J20: =Results!L24 -> 44134 | K20: =Results!M24 -> 61773 | L20: =Results!N24 -> 27708 | M20: =Results!O24 -> 5470 | N20: =Results!P24 -> 67024 | O20: =Results!Q24 -> 4318 | P20: =Results!R24 -> 6095 | Q20: =Results!S24 -> 89140 | R20: =Results!T24 -> 4620 | S20: =Results!U24 -> 34183 | T20: =Results!V24 -> 5512 | U20: =Results!W24 -> 71482 | V20: =Results!X24 -> 44134 | W20: =Results!Y24 -> 61773 | X20: =Results!Z24 -> 27708 | Y20: =Results!AA24 -> 5470 | Z20: =Results!AB24 -> 67024 | AA20: =Results!AC24 -> 4318
C21: P | D21: =Results!F25 -> 5621 | E21: =Results!G25 -> 84570 | F21: =Results!H25 -> 4812 | G21: =Results!I25 -> 51856 | H21: =Results!J25 -> 5821 | I21: =Results!K25 -> 77287 | J21: =Results!L25 -> 68196 | K21: =Results!M25 -> 58408 | L21: =Results!N25 -> 51378 | M21: =Results!O25 -> 5729 | N21: =Results!P25 -> 76652 | O21: =Results!Q25 -> 4558 | P21: =Results!R25 -> 5621 | Q21: =Results!S25 -> 84570 | R21: =Results!T25 -> 4812 | S21: =Results!U25 -> 51856 | T21: =Results!V25 -> 5821 | U21: =Results!W25 -> 77287 | V21: =Results!X25 -> 68196 | W21: =Results!Y25 -> 58408 | X21: =Results!Z25 -> 51378 | Y21: =Results!AA25 -> 5729 | Z21: =Results!AB25 -> 76652 | AA21: =Results!AC25 -> 4558
B23: % CV:
D24: 1 | E24: 2 | F24: 3 | G24: 4 | H24: 5 | I24: 6 | J24: 7 | K24: 8 | L24: 9 | M24: 10 | N24: 11 | O24: 12 | P24: 13 | Q24: 14 | R24: 15 | S24: 16 | T24: 17 | U24: 18 | V24: 19 | W24: 20 | X24: 21 | Y24: 22 | Z24: 23 | AA24: 24
C25: A | D25: =STDEV(D6:D7)/AVERAGE(D6:D7)*100 -> 1.662518788 | E25: =STDEV(E6:E7)/AVERAGE(E6:E7)*100 -> 7.273071662 | F25: =STDEV(F6:F7)/AVERAGE(F6:F7)*100 -> 6.926978438 | G25: =STDEV(G6:G7)/AVERAGE(G6:G7)*100 -> 1.670166593 | H25: 1.023573171 | I25: 2.125849853 | J25: 0.9678813954 | K25: 2.721329636 | L25: 9.753968412 | M25: 3.815635288 | N25: 15.88103262 | O25: 13.72708883 | P25: =STDEV(P6:P7)/AVERAGE(P6:P7)*100 -> 1.662518788 | Q25: =STDEV(Q6:Q7)/AVERAGE(Q6:Q7)*100 -> 7.273071662 | R25: =STDEV(R6:R7)/AVERAGE(R6:R7)*100 -> 6.926978438 | S25: =STDEV(S6:S7)/AVERAGE(S6:S7)*100 -> 1.670166593 | T25: 1.023573171 | U25: 2.125849853 | V25: 0.9678813954 | W25: 2.721329636 | X25: 9.753968412 | Y25: 3.815635288 | Z25: 15.88103262 | AA25: 13.72708883
C26: B
C27: C | D27: =STDEV(D8:D9)/AVERAGE(D8:D9)*100 -> 12.86822051 | E27: =STDEV(E8:E9)/AVERAGE(E8:E9)*100 -> 5.144789604 | F27: 1.751633487 | G27: 2.685909479 | H27: 3.876982668 | I27: 2.678308227 | J27: 0.965105382 | K27: 6.101276482 | L27: 0.9585067146 | M27: 1.148073254 | N27: 2.229526706 | O27: 0.6948795733 | P27: =STDEV(P8:P9)/AVERAGE(P8:P9)*100 -> 12.86822051 | Q27: =STDEV(Q8:Q9)/AVERAGE(Q8:Q9)*100 -> 5.144789604 | R27: 1.751633487 | S27: 2.685909479 | T27: 3.876982668 | U27: 2.678308227 | V27: 0.965105382 | W27: 6.101276482 | X27: 0.9585067146 | Y27: 1.148073254 | Z27: 2.229526706 | AA27: 0.6948795733
C28: D
C29: E | D29: =STDEV(D10:D11)/AVERAGE(D10:D11)*100 -> 22.86584376 | E29: =STDEV(E10:E11)/AVERAGE(E10:E11)*100 -> 3.37531168 | F29: 3.01606634 | G29: 12.54444758 | H29: 0.5166594437 | I29: 0.6026095688 | J29: 22.2310113 | K29: 1.736582143 | L29: 25.57572418 | M29: 1.123372727 | N29: 2.420957146 | O29: 5.214143247 | P29: =STDEV(P10:P11)/AVERAGE(P10:P11)*100 -> 22.86584376 | Q29: =STDEV(Q10:Q11)/AVERAGE(Q10:Q11)*100 -> 3.37531168 | R29: 3.01606634 | S29: 12.54444758 | T29: 0.5166594437 | U29: 0.6026095688 | V29: 22.2310113 | W29: 1.736582143 | X29: 25.57572418 | Y29: 1.123372727 | Z29: 2.420957146 | AA29: 5.214143247
C30: F
C31: G | D31: =STDEV(D12:D13)/AVERAGE(D12:D13)*100 -> 11.13176989 | E31: =STDEV(E12:E13)/AVERAGE(E12:E13)*100 -> 3.002536065 | F31: 33.64258118 | G31: 4.408458093 | H31: 3.93313732 | I31: 3.245277695 | J31: 2.87663686 | K31: 5.046622452 | L31: 2.067745634 | M31: 1.307223855 | N31: 3.665866085 | O31: 0.09967185124 | P31: =STDEV(P12:P13)/AVERAGE(P12:P13)*100 -> 11.13176989 | Q31: =STDEV(Q12:Q13)/AVERAGE(Q12:Q13)*100 -> 3.002536065 | R31: 33.64258118 | S31: 4.408458093 | T31: 3.93313732 | U31: 3.245277695 | V31: 2.87663686 | W31: 5.046622452 | X31: 2.067745634 | Y31: 1.307223855 | Z31: 3.665866085 | AA31: 0.09967185124
C32: H
C33: I | D33: =STDEV(D14:D15)/AVERAGE(D14:D15)*100 -> 4.028333353 | E33: =STDEV(E14:E15)/AVERAGE(E14:E15)*100 -> 1.389171911 | F33: 4.202234585 | G33: 4.411106436 | H33: 0.460595871 | I33: 2.04192238 | J33: 0.4542441849 | K33: 2.586358679 | L33: 2.055703037 | M33: 4.969541404 | N33: 2.271182631 | O33: 4.814590881 | P33: =STDEV(P14:P15)/AVERAGE(P14:P15)*100 -> 4.028333353 | Q33: =STDEV(Q14:Q15)/AVERAGE(Q14:Q15)*100 -> 1.389171911 | R33: 4.202234585 | S33: 4.411106436 | T33: 0.460595871 | U33: 2.04192238 | V33: 0.4542441849 | W33: 2.586358679 | X33: 2.055703037 | Y33: 4.969541404 | Z33: 2.271182631 | AA33: 4.814590881
C34: J
C35: K | D35: =STDEV(D16:D17)/AVERAGE(D16:D17)*100 -> 5.308755059 | E35: =STDEV(E16:E17)/AVERAGE(E16:E17)*100 -> 10.94973421 | F35: 5.320940935 | G35: 7.752062418 | H35: 6.020056849 | I35: 1.407475777 | J35: 0.7133510458 | K35: 0.2151042188 | L35: 0.332778504 | M35: 8.347659239 | N35: 0.9722793729 | O35: 2.475486478 | P35: =STDEV(P16:P17)/AVERAGE(P16:P17)*100 -> 5.308755059 | Q35: =STDEV(Q16:Q17)/AVERAGE(Q16:Q17)*100 -> 10.94973421 | R35: 5.320940935 | S35: 7.752062418 | T35: 6.020056849 | U35: 1.407475777 | V35: 0.7133510458 | W35: 0.2151042188 | X35: 0.332778504 | Y35: 8.347659239 | Z35: 0.9722793729 | AA35: 2.475486478
C36: L
C37: M | D37: =STDEV(D18:D19)/AVERAGE(D18:D19)*100 -> 7.804936199 | E37: =STDEV(E18:E19)/AVERAGE(E18:E19)*100 -> 0.1599308179 | F37: 0.9726365628 | G37: 17.13781127 | H37: 3.888575642 | I37: 1.223025549 | J37: 6.044279215 | K37: 4.30087353 | L37: 43.86775307 | M37: 5.373678087 | N37: 2.268536417 | O37: 8.211193453 | P37: =STDEV(P18:P19)/AVERAGE(P18:P19)*100 -> 7.804936199 | Q37: =STDEV(Q18:Q19)/AVERAGE(Q18:Q19)*100 -> 0.1599308179 | R37: 0.9726365628 | S37: 17.13781127 | T37: 3.888575642 | U37: 1.223025549 | V37: 6.044279215 | W37: 4.30087353 | X37: 43.86775307 | Y37: 5.373678087 | Z37: 2.268536417 | AA37: 8.211193453
C38: N
C39: O | D39: =STDEV(D20:D21)/AVERAGE(D20:D21)*100 -> 5.721553675 | E39: =STDEV(E20:E21)/AVERAGE(E20:E21)*100 -> 3.720543423 | F39: 2.878806234 | G39: 29.04891536 | H39: 3.855925093 | I39: 5.51829328 | J39: 30.29360521 | K39: 3.959717957 | L39: 42.32662547 | M39: 3.270660886 | N39: 9.476912065 | O39: 3.823921304 | P39: =STDEV(P20:P21)/AVERAGE(P20:P21)*100 -> 5.721553675 | Q39: =STDEV(Q20:Q21)/AVERAGE(Q20:Q21)*100 -> 3.720543423 | R39: =STDEV(R20:R21)/AVERAGE(R20:R21)*100 -> 2.878806234 | S39: 29.04891536 | T39: 3.855925093 | U39: 5.51829328 | V39: 30.29360521 | W39: 3.959717957 | X39: 42.32662547 | Y39: 3.270660886 | Z39: 9.476912065 | AA39: 3.823921304
C40: P
B42: % Kinase Activity
D43: 1 | E43: 2 | F43: 3 | G43: 4 | H43: 5 | I43: 6 | J43: 7 | K43: 8 | L43: 9 | M43: 10 | N43: 11 | O43: 12 | P43: 13 | Q43: 14 | R43: 15 | S43: 16 | T43: 17 | U43: 18 | V43: 19 | W43: 20 | X43: 21 | Y43: 22 | Z43: 23 | AA43: 24
C44: A | D44: ='Kinase Strips'!I46 -> 0 | E44: ='Kinase Strips'!J46 -> 100 | F44: ='Kinase Strips'!K46 -> 47.62979233 | G44: ='Kinase Strips'!L46 -> 5.990415335 | H44: ='Kinase Strips'!M46 -> 99.77635783 | I44: ='Kinase Strips'!N46 -> 119.2132588 | J44: ='Kinase Strips'!O46 -> 119.2751597 | K44: ='Kinase Strips'!P46 -> 114.0455272 | L44: ='Kinase Strips'!Q46 -> 130.4113419 | M44: ='Kinase Strips'!R46 -> 116.1501597 | N44: ='Kinase Strips'!S46 -> 103.2847444 | O44: ='Kinase Strips'!T46 -> 73.23881789 | P44: ='Kinase Strips'!X46 -> 0 | Q44: ='Kinase Strips'!Y46 -> 100 | R44: ='Kinase Strips'!Z46 -> 47.62979233 | S44: ='Kinase Strips'!AA46 -> 5.990415335 | T44: ='Kinase Strips'!AB46 -> 99.77635783 | U44: ='Kinase Strips'!AC46 -> 119.2132588 | V44: ='Kinase Strips'!AD46 -> 119.2751597 | W44: ='Kinase Strips'!AE46 -> 114.0455272 | X44: ='Kinase Strips'!AF46 -> 130.4113419 | Y44: ='Kinase Strips'!AG46 -> 116.1501597 | Z44: ='Kinase Strips'!AH46 -> 103.2847444 | AA44: ='Kinase Strips'!AI46 -> 73.23881789
C45: B
C46: C | D46: ='Kinase Strips'!I47 -> 0 | E46: ='Kinase Strips'!J47 -> 100 | F46: ='Kinase Strips'!K47 -> 27.50281068 | G46: ='Kinase Strips'!L47 -> 11.82576411 | H46: ='Kinase Strips'!M47 -> 161.4296546 | I46: ='Kinase Strips'!N47 -> 104.162418 | J46: ='Kinase Strips'!O47 -> 109.6608884 | K46: ='Kinase Strips'!P47 -> 114.9214317 | L46: ='Kinase Strips'!Q47 -> 109.0699924 | M46: ='Kinase Strips'!R47 -> 141.7261485 | N46: ='Kinase Strips'!S47 -> 120.6133814 | O46: ='Kinase Strips'!T47 -> 26.69228959 | P46: ='Kinase Strips'!X47 -> 0 | Q46: ='Kinase Strips'!Y47 -> 100 | R46: ='Kinase Strips'!Z47 -> 27.50281068 | S46: ='Kinase Strips'!AA47 -> 11.82576411 | T46: ='Kinase Strips'!AB47 -> 161.4296546 | U46: ='Kinase Strips'!AC47 -> 104.162418 | V46: ='Kinase Strips'!AD47 -> 109.6608884 | W46: ='Kinase Strips'!AE47 -> 114.9214317 | X46: ='Kinase Strips'!AF47 -> 109.0699924 | Y46: ='Kinase Strips'!AG47 -> 141.7261485 | Z46: ='Kinase Strips'!AH47 -> 120.6133814 | AA46: ='Kinase Strips'!AI47 -> 26.69228959
C47: D
C48: E | D48: ='Kinase Strips'!I48 -> 0 | E48: ='Kinase Strips'!J48 -> 100 | F48: ='Kinase Strips'!K48 -> 87.50454912 | G48: ='Kinase Strips'!L48 -> 73.64515261 | H48: ='Kinase Strips'!M48 -> 44.68266903 | I48: ='Kinase Strips'!N48 -> 110.48909 | J48: ='Kinase Strips'!O48 -> 137.4847703 | K48: ='Kinase Strips'!P48 -> 112.7217203 | L48: ='Kinase Strips'!Q48 -> 136.7363408 | M48: ='Kinase Strips'!R48 -> 100.6534914 | N48: ='Kinase Strips'!S48 -> 106.5839649 | O48: ='Kinase Strips'!T48 -> 93.72458425 | P48: ='Kinase Strips'!X48 -> 0 | Q48: ='Kinase Strips'!Y48 -> 100 | R48: ='Kinase Strips'!Z48 -> 87.50454912 | S48: ='Kinase Strips'!AA48 -> 73.64515261 | T48: ='Kinase Strips'!AB48 -> 44.68266903 | U48: ='Kinase Strips'!AC48 -> 110.48909 | V48: ='Kinase Strips'!AD48 -> 137.4847703 | W48: ='Kinase Strips'!AE48 -> 112.7217203 | X48: ='Kinase Strips'!AF48 -> 136.7363408 | Y48: ='Kinase Strips'!AG48 -> 100.6534914 | Z48: ='Kinase Strips'!AH48 -> 106.5839649 | AA48: ='Kinase Strips'!AI48 -> 93.72458425
C49: F
C50: G | D50: ='Kinase Strips'!I49 -> 0 | E50: ='Kinase Strips'!J49 -> 100 | F50: ='Kinase Strips'!K49 -> 50.27830052 | G50: ='Kinase Strips'!L49 -> 106.7383407 | H50: ='Kinase Strips'!M49 -> 102.8699919 | I50: ='Kinase Strips'!N49 -> 107.355207 | J50: ='Kinase Strips'!O49 -> 99.49684176 | K50: ='Kinase Strips'!P49 -> 111.839285 | L50: ='Kinase Strips'!Q49 -> 107.0419412 | M50: ='Kinase Strips'!R49 -> 107.3074496 | N50: ='Kinase Strips'!S49 -> 114.0298711 | O50: ='Kinase Strips'!T49 -> 31.7336502 | P50: ='Kinase Strips'!X49 -> 0 | Q50: ='Kinase Strips'!Y49 -> 100 | R50: ='Kinase Strips'!Z49 -> 50.27830052 | S50: ='Kinase Strips'!AA49 -> 106.7383407 | T50: ='Kinase Strips'!AB49 -> 102.8699919 | U50: ='Kinase Strips'!AC49 -> 107.355207 | V50: ='Kinase Strips'!AD49 -> 99.49684176 | W50: ='Kinase Strips'!AE49 -> 111.839285 | X50: ='Kinase Strips'!AF49 -> 107.0419412 | Y50: ='Kinase Strips'!AG49 -> 107.3074496 | Z50: ='Kinase Strips'!AH49 -> 114.0298711 | AA50: ='Kinase Strips'!AI49 -> 31.7336502
C51: H
C52: I | D52: ='Kinase Strips'!I50 -> 0 | E52: ='Kinase Strips'!J50 -> 100 | F52: ='Kinase Strips'!K50 -> -0.6475111291 | G52: ='Kinase Strips'!L50 -> 98.92755969 | H52: ='Kinase Strips'!M50 -> 97.53136382 | I52: ='Kinase Strips'!N50 -> 100.8093889 | J52: ='Kinase Strips'!O50 -> 89.27559692 | K52: ='Kinase Strips'!P50 -> 97.79441522 | L52: ='Kinase Strips'!Q50 -> 98.70497774 | M52: ='Kinase Strips'!R50 -> 92.65479563 | N52: ='Kinase Strips'!S50 -> 106.9202752 | O52: ='Kinase Strips'!T50 -> -15.78308377 | P52: ='Kinase Strips'!X50 -> 0 | Q52: ='Kinase Strips'!Y50 -> 100 | R52: ='Kinase Strips'!Z50 -> -0.6475111291 | S52: ='Kinase Strips'!AA50 -> 98.92755969 | T52: ='Kinase Strips'!AB50 -> 97.53136382 | U52: ='Kinase Strips'!AC50 -> 100.8093889 | V52: ='Kinase Strips'!AD50 -> 89.27559692 | W52: ='Kinase Strips'!AE50 -> 97.79441522 | X52: ='Kinase Strips'!AF50 -> 98.70497774 | Y52: ='Kinase Strips'!AG50 -> 92.65479563 | Z52: ='Kinase Strips'!AH50 -> 106.9202752 | AA52: ='Kinase Strips'!AI50 -> -15.78308377
C53: J
C54: K | D54: ='Kinase Strips'!I51 -> 0 | E54: ='Kinase Strips'!J51 -> 100 | F54: ='Kinase Strips'!K51 -> 0.2302170146 | G54: ='Kinase Strips'!L51 -> 82.78859642 | H54: ='Kinase Strips'!M51 -> 88.57909068 | I54: ='Kinase Strips'!N51 -> 90.61556234 | J54: ='Kinase Strips'!O51 -> 54.8947933 | K54: ='Kinase Strips'!P51 -> 91.75096955 | L54: ='Kinase Strips'!Q51 -> 93.37239046 | M54: ='Kinase Strips'!R51 -> 6.166762934 | N54: ='Kinase Strips'!S51 -> 91.80295404 | O54: ='Kinase Strips'!T51 -> -0.05280963776 | P54: ='Kinase Strips'!X51 -> 0 | Q54: ='Kinase Strips'!Y51 -> 100 | R54: ='Kinase Strips'!Z51 -> 0.2302170146 | S54: ='Kinase Strips'!AA51 -> 82.78859642 | T54: ='Kinase Strips'!AB51 -> 88.57909068 | U54: ='Kinase Strips'!AC51 -> 90.61556234 | V54: ='Kinase Strips'!AD51 -> 54.8947933 | W54: ='Kinase Strips'!AE51 -> 91.75096955 | X54: ='Kinase Strips'!AF51 -> 93.37239046 | Y54: ='Kinase Strips'!AG51 -> 6.166762934 | Z54: ='Kinase Strips'!AH51 -> 91.80295404 | AA54: ='Kinase Strips'!AI51 -> -0.05280963776
C55: L
C56: M | D56: ='Kinase Strips'!I52 -> 0 | E56: ='Kinase Strips'!J52 -> 100 | F56: ='Kinase Strips'!K52 -> -0.6941691347 | G56: ='Kinase Strips'!L52 -> 55.28400302 | H56: ='Kinase Strips'!M52 -> 2.136921558 | I56: ='Kinase Strips'!N52 -> 85.77458548 | J56: ='Kinase Strips'!O52 -> 59.83535832 | K56: ='Kinase Strips'!P52 -> 78.47920213 | L56: ='Kinase Strips'!Q52 -> 46.41605062 | M56: ='Kinase Strips'!R52 -> -0.03420318245 | N56: ='Kinase Strips'!S52 -> 88.07164012 | O56: ='Kinase Strips'!T52 -> -0.921153891 | P56: ='Kinase Strips'!X52 -> 0 | Q56: ='Kinase Strips'!Y52 -> 100 | R56: ='Kinase Strips'!Z52 -> -0.6941691347 | S56: ='Kinase Strips'!AA52 -> 55.28400302 | T56: ='Kinase Strips'!AB52 -> 2.136921558 | U56: ='Kinase Strips'!AC52 -> 85.77458548 | V56: ='Kinase Strips'!AD52 -> 59.83535832 | W56: ='Kinase Strips'!AE52 -> 78.47920213 | X56: ='Kinase Strips'!AF52 -> 46.41605062 | Y56: ='Kinase Strips'!AG52 -> -0.03420318245 | Z56: ='Kinase Strips'!AH52 -> 88.07164012 | AA56: ='Kinase Strips'!AI52 -> -0.921153891
C57: N
C58: O | D58: ='Kinase Strips'!I53 -> 0 | E58: ='Kinase Strips'!J53 -> 100 | F58: ='Kinase Strips'!K53 -> -1.409928763 | G58: ='Kinase Strips'!L53 -> 45.88009432 | H58: ='Kinase Strips'!M53 -> -0.2364285097 | I58: ='Kinase Strips'!N53 -> 84.60375076 | J58: ='Kinase Strips'!O53 -> 62.10970777 | K58: ='Kinase Strips'!P53 -> 66.95618356 | L58: ='Kinase Strips'!Q53 -> 41.58796005 | M58: ='Kinase Strips'!R53 -> -0.3191476228 | N58: ='Kinase Strips'!S53 -> 81.45980715 | O58: ='Kinase Strips'!T53 -> -1.753151351 | P58: ='Kinase Strips'!X53 -> 0 | Q58: ='Kinase Strips'!Y53 -> 100 | R58: ='Kinase Strips'!Z53 -> -1.409928763 | S58: ='Kinase Strips'!AA53 -> 45.88009432 | T58: ='Kinase Strips'!AB53 -> -0.2364285097 | U58: ='Kinase Strips'!AC53 -> 84.60375076 | V58: ='Kinase Strips'!AD53 -> 62.10970777 | W58: ='Kinase Strips'!AE53 -> 66.95618356 | X58: ='Kinase Strips'!AF53 -> 41.58796005 | Y58: ='Kinase Strips'!AG53 -> -0.3191476228 | Z58: ='Kinase Strips'!AH53 -> 81.45980715 | AA58: ='Kinase Strips'!AI53 -> -1.753151351
C59: P

Sheet Kinase Strips (hidden)
A3: Strip Composition:
B6: Strip Name | C6: Tube in Strip | D6: Kinase | I6: 1 | J6: 2 | K6: 3 | L6: 4 | M6: 5 | N6: 6 | O6: 7 | P6: 8 | Q6: 9 | R6: 10 | S6: 11 | T6: 12 | X6: 13 | Y6: 14 | Z6: 15 | AA6: 16 | AB6: 17 | AC6: 18 | AD6: 19 | AE6: 20 | AF6: 21 | AG6: 22 | AH6: 23 | AI6: 24
B7: TK-1 | C7: 1 | D7: EGFR | H7: A | I7: =Results!F10 -> 5336 | J7: =Results!G10 -> 28755 | K7: =Results!H10 -> 16358 | L7: =Results!I10 -> 6854 | M7: =Results!J10 -> 30477 | N7: =Results!K10 -> 35653 | O7: =Results!L10 -> 35381 | P7: =Results!M10 -> 34482 | Q7: =Results!N10 -> 40545 | R7: =Results!O10 -> 33431 | S7: =Results!P10 -> 27640 | T7: =Results!Q10 -> 21321 | W7: A | X7: =Results!R10 -> 5336 | Y7: =Results!S10 -> 28755 | Z7: =Results!T10 -> 16358 | AA7: =Results!U10 -> 6854 | AB7: =Results!V10 -> 30477 | AC7: =Results!W10 -> 35653 | AD7: =Results!X10 -> 35381 | AE7: =Results!Y10 -> 34482 | AF7: =Results!Z10 -> 40545 | AG7: =Results!AA10 -> 33431 | AH7: =Results!AB10 -> 27640 | AI7: =Results!AC10 -> 21321
C8: 2 | D8: HER2 | H8: B | I8: =Results!F11 -> 5212 | J8: =Results!G11 -> 31873 | K8: =Results!H11 -> 18043 | L8: =Results!I11 -> 6694 | M8: =Results!J11 -> 30039 | N8: =Results!K11 -> 34597 | O8: =Results!L11 -> 34900 | P8: =Results!M11 -> 33180 | Q8: =Results!N11 -> 35313 | R8: =Results!O11 -> 35285 | S8: =Results!P11 -> 34633 | T8: =Results!Q11 -> 25905 | W8: B | X8: =Results!R11 -> 5212 | Y8: =Results!S11 -> 31873 | Z8: =Results!T11 -> 18043 | AA8: =Results!U11 -> 6694 | AB8: =Results!V11 -> 30039 | AC8: =Results!W11 -> 34597 | AD8: =Results!X11 -> 34900 | AE8: =Results!Y11 -> 33180 | AF8: =Results!Z11 -> 35313 | AG8: =Results!AA11 -> 35285 | AH8: =Results!AB11 -> 34633 | AI8: =Results!AC11 -> 25905
C9: 3 | D9: HER4 | H9: C | I9: =Results!F12 -> 5977 | J9: =Results!G12 -> 25497 | K9: =Results!H12 -> 10871 | L9: =Results!I12 -> 7593 | M9: =Results!J12 -> 37346 | N9: =Results!K12 -> 25879 | O9: =Results!L12 -> 26630 | P9: =Results!M12 -> 28640 | Q9: =Results!N12 -> 26515 | R9: =Results!O12 -> 32317 | S9: =Results!P12 -> 28994 | T9: =Results!Q12 -> 10531 | W9: C | X9: =Results!R12 -> 5977 | Y9: =Results!S12 -> 25497 | Z9: =Results!T12 -> 10871 | AA9: =Results!U12 -> 7593 | AB9: =Results!V12 -> 37346 | AC9: =Results!W12 -> 25879 | AD9: =Results!X12 -> 26630 | AE9: =Results!Y12 -> 28640 | AF9: =Results!Z12 -> 26515 | AG9: =Results!AA12 -> 32317 | AH9: =Results!AB12 -> 28994 | AI9: =Results!AC12 -> 10531
C10: 4 | D10: IGF1R | H10: D | I10: =Results!F13 -> 4980 | J10: =Results!G13 -> 23707 | K10: =Results!H13 -> 10605 | L10: =Results!I13 -> 7887 | M10: =Results!J13 -> 35353 | N10: =Results!K13 -> 24917 | O10: =Results!L13 -> 26269 | P10: =Results!M13 -> 26271 | Q10: =Results!N13 -> 26158 | R10: =Results!O13 -> 32846 | S10: =Results!P13 -> 28094 | T10: =Results!Q13 -> 10635 | W10: D | X10: =Results!R13 -> 4980 | Y10: =Results!S13 -> 23707 | Z10: =Results!T13 -> 10605 | AA10: =Results!U13 -> 7887 | AB10: =Results!V13 -> 35353 | AC10: =Results!W13 -> 24917 | AD10: =Results!X13 -> 26269 | AE10: =Results!Y13 -> 26271 | AF10: =Results!Z13 -> 26158 | AG10: =Results!AA13 -> 32846 | AH10: =Results!AB13 -> 28094 | AI10: =Results!AC13 -> 10635
C11: 5 | D11: InsR | H11: E | I11: =Results!F14 -> 5947 | J11: =Results!G14 -> 37770 | K11: =Results!H14 -> 35486 | L11: =Results!I14 -> 33059 | M11: =Results!J14 -> 21136 | N11: =Results!K14 -> 41829 | O11: =Results!L14 -> 42594 | P11: =Results!M14 -> 42189 | Q11: =Results!N14 -> 59399 | R11: =Results!O14 -> 38591 | S11: =Results!P14 -> 40076 | T11: =Results!Q14 -> 38064 | W11: E | X11: =Results!R14 -> 5947 | Y11: =Results!S14 -> 37770 | Z11: =Results!T14 -> 35486 | AA11: =Results!U14 -> 33059 | AB11: =Results!V14 -> 21136 | AC11: =Results!W14 -> 41829 | AD11: =Results!X14 -> 42594 | AE11: =Results!Y14 -> 42189 | AF11: =Results!Z14 -> 59399 | AG11: =Results!AA14 -> 38591 | AH11: =Results!AB14 -> 40076 | AI11: =Results!AC14 -> 38064
C12: 6 | D12: KDR | H12: F | I12: =Results!F15 -> 8241 | J12: =Results!G15 -> 39617 | K12: =Results!H15 -> 34004 | L12: =Results!I15 -> 27672 | M12: =Results!J15 -> 21291 | N12: =Results!K15 -> 42187 | O12: =Results!L15 -> 58483 | P12: =Results!M15 -> 43238 | Q12: =Results!N15 -> 41205 | R12: =Results!O15 -> 39209 | S12: =Results!P15 -> 41472 | T12: =Results!Q15 -> 35357 | W12: F | X12: =Results!R15 -> 8241 | Y12: =Results!S15 -> 39617 | Z12: =Results!T15 -> 34004 | AA12: =Results!U15 -> 27672 | AB12: =Results!V15 -> 21291 | AC12: =Results!W15 -> 42187 | AD12: =Results!X15 -> 58483 | AE12: =Results!Y15 -> 43238 | AF12: =Results!Z15 -> 41205 | AG12: =Results!AA15 -> 39209 | AH12: =Results!AB15 -> 41472 | AI12: =Results!AC15 -> 35357
C13: 7 | D13: PDGFRa | H13: G | I13: =Results!F16 -> 5098 | J13: =Results!G16 -> 94638 | K13: =Results!H16 -> 37300 | L13: =Results!I16 -> 101670 | M13: =Results!J16 -> 97842 | N13: =Results!K16 -> 101414 | O13: =Results!L16 -> 94104 | P13: =Results!M16 -> 106761 | Q13: =Results!N16 -> 100309 | R13: =Results!O16 -> 100013 | S13: =Results!P16 -> 102287 | T13: =Results!Q16 -> 32611 | W13: G | X13: =Results!R16 -> 5098 | Y13: =Results!S16 -> 94638 | Z13: =Results!T16 -> 37300 | AA13: =Results!U16 -> 101670 | AB13: =Results!V16 -> 97842 | AC13: =Results!W16 -> 101414 | AD13: =Results!X16 -> 94104 | AE13: =Results!Y16 -> 106761 | AF13: =Results!Z16 -> 100309 | AG13: =Results!AA16 -> 100013 | AH13: =Results!AB16 -> 102287 | AI13: =Results!AC16 -> 32611
C14: 8 | D14: PDGFRb | H14: H | I14: =Results!F17 -> 4354 | J14: =Results!G17 -> 90703 | K14: =Results!H17 -> 60586 | L14: =Results!I17 -> 95523 | M14: =Results!J17 -> 92547 | N14: =Results!K17 -> 96864 | O14: =Results!L17 -> 90352 | P14: =Results!M17 -> 99404 | Q14: =Results!N17 -> 97418 | R14: =Results!O17 -> 98181 | S14: =Results!P17 -> 107731 | T14: =Results!Q17 -> 32657 | W14: H | X14: =Results!R17 -> 4354 | Y14: =Results!S17 -> 90703 | Z14: =Results!T17 -> 60586 | AA14: =Results!U17 -> 95523 | AB14: =Results!V17 -> 92547 | AC14: =Results!W17 -> 96864 | AD14: =Results!X17 -> 90352 | AE14: =Results!Y17 -> 99404 | AF14: =Results!Z17 -> 97418 | AG14: =Results!AA17 -> 98181 | AH14: =Results!AB17 -> 107731 | AI14: =Results!AC17 -> 32657
B15: TK-2 | C15: 1 | D15: ABL1 | H15: I | I15: =Results!F18 -> 5416 | J15: =Results!G18 -> 7813 | K15: =Results!H18 -> 5406 | L15: =Results!I18 -> 7951 | M15: =Results!J18 -> 7651 | N15: =Results!K18 -> 7645 | O15: =Results!L18 -> 7448 | P15: =Results!M18 -> 7823 | Q15: =Results!N18 -> 7817 | R15: =Results!O18 -> 7821 | S15: =Results!P18 -> 8035 | T15: =Results!Q18 -> 5042 | W15: I | X15: =Results!R18 -> 5416 | Y15: =Results!S18 -> 7813 | Z15: =Results!T18 -> 5406 | AA15: =Results!U18 -> 7951 | AB15: =Results!V18 -> 7651 | AC15: =Results!W18 -> 7645 | AD15: =Results!X18 -> 7448 | AE15: =Results!Y18 -> 7823 | AF15: =Results!Z18 -> 7817 | AG15: =Results!AA18 -> 7821 | AH15: =Results!AB18 -> 8035 | AI15: =Results!AC18 -> 5042
C16: 2 | D16: BRK | H16: J | I16: =Results!F19 -> 5116 | J16: =Results!G19 -> 7661 | K16: =Results!H19 -> 5094 | L16: =Results!I19 -> 7470 | M16: =Results!J19 -> 7701 | N16: =Results!K19 -> 7869 | O16: =Results!L19 -> 7496 | P16: =Results!M19 -> 7542 | Q16: =Results!N19 -> 7593 | R16: =Results!O19 -> 7290 | S16: =Results!P19 -> 7781 | T16: =Results!Q19 -> 4710 | W16: J | X16: =Results!R19 -> 5116 | Y16: =Results!S19 -> 7661 | Z16: =Results!T19 -> 5094 | AA16: =Results!U19 -> 7470 | AB16: =Results!V19 -> 7701 | AC16: =Results!W19 -> 7869 | AD16: =Results!X19 -> 7496 | AE16: =Results!Y19 -> 7542 | AF16: =Results!Z19 -> 7593 | AG16: =Results!AA19 -> 7290 | AH16: =Results!AB19 -> 7781 | AI16: =Results!AC19 -> 4710
C17: 3 | D17: BTK | H17: K | I17: =Results!F20 -> 6053 | J17: =Results!G20 -> 136859 | K17: =Results!H20 -> 6343 | L17: =Results!I20 -> 111985 | M17: =Results!J20 -> 118001 | N17: =Results!K20 -> 116802 | O17: =Results!L20 -> 71996 | P17: =Results!M20 -> 117205 | Q17: =Results!N20 -> 119272 | R17: =Results!O20 -> 14093 | S17: =Results!P20 -> 116285 | T17: =Results!Q20 -> 5871 | W17: K | X17: =Results!R20 -> 6053 | Y17: =Results!S20 -> 136859 | Z17: =Results!T20 -> 6343 | AA17: =Results!U20 -> 111985 | AB17: =Results!V20 -> 118001 | AC17: =Results!W20 -> 116802 | AD17: =Results!X20 -> 71996 | AE17: =Results!Y20 -> 117205 | AF17: =Results!Z20 -> 119272 | AG17: =Results!AA20 -> 14093 | AH17: =Results!AB20 -> 116285 | AI17: =Results!AC20 -> 5871
C18: 4 | D18: CSK | H18: L | I18: =Results!F21 -> 5615 | J18: =Results!G21 -> 117189 | K18: =Results!H21 -> 5883 | L18: =Results!I21 -> 100346 | M18: =Results!J21 -> 108365 | N18: =Results!K21 -> 114500 | O18: =Results!L21 -> 72726 | P18: =Results!M21 -> 116849 | Q18: =Results!N21 -> 118712 | R18: =Results!O21 -> 12522 | S18: =Results!P21 -> 117895 | T18: =Results!Q21 -> 5669 | W18: L | X18: =Results!R21 -> 5615 | Y18: =Results!S21 -> 117189 | Z18: =Results!T21 -> 5883 | AA18: =Results!U21 -> 100346 | AB18: =Results!V21 -> 108365 | AC18: =Results!W21 -> 114500 | AD18: =Results!X21 -> 72726 | AE18: =Results!Y21 -> 116849 | AF18: =Results!Z21 -> 118712 | AG18: =Results!AA21 -> 12522 | AH18: =Results!AB21 -> 117895 | AI18: =Results!AC21 -> 5669
C19: 5 | D19: FYN A | H19: M | I19: =Results!F22 -> 5841 | J19: =Results!G22 -> 69936 | K19: =Results!H22 -> 5054 | L19: =Results!I22 -> 36115 | M19: =Results!J22 -> 7100 | N19: =Results!K22 -> 61232 | O19: =Results!L22 -> 42141 | P19: =Results!M22 -> 54311 | Q19: =Results!N22 -> 24413 | R19: =Results!O22 -> 5723 | S19: =Results!P22 -> 63182 | T19: =Results!Q22 -> 4656 | W19: M | X19: =Results!R22 -> 5841 | Y19: =Results!S22 -> 69936 | Z19: =Results!T22 -> 5054 | AA19: =Results!U22 -> 36115 | AB19: =Results!V22 -> 7100 | AC19: =Results!W22 -> 61232 | AD19: =Results!X22 -> 42141 | AE19: =Results!Y22 -> 54311 | AF19: =Results!Z22 -> 24413 | AG19: =Results!AA22 -> 5723 | AH19: =Results!AB22 -> 63182 | AI19: =Results!AC22 -> 4656
C20: 6 | D20: LCK | H20: N | I20: =Results!F23 -> 5230 | J20: =Results!G23 -> 69778 | K20: =Results!H23 -> 5124 | L20: =Results!I23 -> 46075 | M20: =Results!J23 -> 6720 | N20: =Results!K23 -> 60182 | O20: =Results!L23 -> 45904 | P20: =Results!M23 -> 57718 | Q20: =Results!N23 -> 46369 | R20: =Results!O23 -> 5304 | S20: =Results!P23 -> 61187 | T20: =Results!Q23 -> 5230 | W20: N | X20: =Results!R23 -> 5230 | Y20: =Results!S23 -> 69778 | Z20: =Results!T23 -> 5124 | AA20: =Results!U23 -> 46075 | AB20: =Results!V23 -> 6720 | AC20: =Results!W23 -> 60182 | AD20: =Results!X23 -> 45904 | AE20: =Results!Y23 -> 57718 | AF20: =Results!Z23 -> 46369 | AG20: =Results!AA23 -> 5304 | AH20: =Results!AB23 -> 61187 | AI20: =Results!AC23 -> 5230
C21: 7 | D21: LYN B | H21: O | I21: =Results!F24 -> 6095 | J21: =Results!G24 -> 89140 | K21: =Results!H24 -> 4620 | L21: =Results!I24 -> 34183 | M21: =Results!J24 -> 5512 | N21: =Results!K24 -> 71482 | O21: =Results!L24 -> 44134 | P21: =Results!M24 -> 61773 | Q21: =Results!N24 -> 27708 | R21: =Results!O24 -> 5470 | S21: =Results!P24 -> 67024 | T21: =Results!Q24 -> 4318 | W21: O | X21: =Results!R24 -> 6095 | Y21: =Results!S24 -> 89140 | Z21: =Results!T24 -> 4620 | AA21: =Results!U24 -> 34183 | AB21: =Results!V24 -> 5512 | AC21: =Results!W24 -> 71482 | AD21: =Results!X24 -> 44134 | AE21: =Results!Y24 -> 61773 | AF21: =Results!Z24 -> 27708 | AG21: =Results!AA24 -> 5470 | AH21: =Results!AB24 -> 67024 | AI21: =Results!AC24 -> 4318
C22: 8 | D22: SRC | H22: P | I22: =Results!F25 -> 5621 | J22: =Results!G25 -> 84570 | K22: =Results!H25 -> 4812 | L22: =Results!I25 -> 51856 | M22: =Results!J25 -> 5821 | N22: =Results!K25 -> 77287 | O22: =Results!L25 -> 68196 | P22: =Results!M25 -> 58408 | Q22: =Results!N25 -> 51378 | R22: =Results!O25 -> 5729 | S22: =Results!P25 -> 76652 | T22: =Results!Q25 -> 4558 | W22: P | X22: =Results!R25 -> 5621 | Y22: =Results!S25 -> 84570 | Z22: =Results!T25 -> 4812 | AA22: =Results!U25 -> 51856 | AB22: =Results!V25 -> 5821 | AC22: =Results!W25 -> 77287 | AD22: =Results!X25 -> 68196 | AE22: =Results!Y25 -> 58408 | AF22: =Results!Z25 -> 51378 | AG22: =Results!AA25 -> 5729 | AH22: =Results!AB25 -> 76652 | AI22: =Results!AC25 -> 4558
B23: TK-3 | C23: 1 | D23: AXL1
C24: 2 | D24: EPHA1
C25: 3 | D25: FAK | I25: BG | J25: 1 | K25: I1 | L25: I2 | M25: I3 | N25: I4 | O25: I5 | P25: I6 | Q25: I7 | R25: I8 | S25: I9 | T25: I10 | X25: BG | Y25: 1 | Z25: I1 | AA25: I2 | AB25: I3 | AC25: I4 | AD25: I5 | AE25: I6 | AF25: I7 | AG25: I8 | AH25: I9 | AI25: I10
C26: 4 | D26: ITK | I26: 1 | J26: 2 | K26: 3 | L26: 4 | M26: 5 | N26: 6 | O26: 7 | P26: 8 | Q26: 9 | R26: 10 | S26: 11 | T26: 12 | X26: 1 | Y26: 2 | Z26: 3 | AA26: 4 | AB26: 5 | AC26: 6 | AD26: 7 | AE26: 8 | AF26: 9 | AG26: 10 | AH26: 11 | AI26: 12
C27: 5 | D27: JAK3 | I27: =AVERAGE(I7:I8) -> 5274 | J27: 30314 | K27: 17200.5 | L27: 6774 | M27: 30258 | N27: 35125 | O27: 35140.5 | P27: 33831 | Q27: 37929 | R27: 34358 | S27: 31136.5 | T27: 23613 | X27: =AVERAGE(X7:X8) -> 5274 | Y27: 30314 | Z27: 17200.5 | AA27: 6774 | AB27: 30258 | AC27: 35125 | AD27: 35140.5 | AE27: 33831 | AF27: 37929 | AG27: 34358 | AH27: 31136.5 | AI27: 23613
C28: 6 | D28: PYK2 | I28: =AVERAGE(I9:I10) -> 5478.5 | J28: 24602 | K28: 10738 | L28: 7740 | M28: 36349.5 | N28: 25398 | O28: 26449.5 | P28: 27455.5 | Q28: 26336.5 | R28: 32581.5 | S28: 28544 | T28: 10583 | X28: =AVERAGE(X9:X10) -> 5478.5 | Y28: 24602 | Z28: 10738 | AA28: 7740 | AB28: 36349.5 | AC28: 25398 | AD28: 26449.5 | AE28: 27455.5 | AF28: 26336.5 | AG28: 32581.5 | AH28: 28544 | AI28: 10583
C29: 7 | D29: SYK | I29: =AVERAGE(I11:I12) -> 7094 | J29: 38693.5 | K29: 34745 | L29: 30365.5 | M29: 21213.5 | N29: 42008 | O29: 50538.5 | P29: 42713.5 | Q29: 50302 | R29: 38900 | S29: 40774 | T29: 36710.5 | X29: =AVERAGE(X11:X12) -> 7094 | Y29: 38693.5 | Z29: 34745 | AA29: 30365.5 | AB29: 21213.5 | AC29: 42008 | AD29: 50538.5 | AE29: 42713.5 | AF29: 50302 | AG29: 38900 | AH29: 40774 | AI29: 36710.5
C30: 8 | D30: TRKA | I30: =AVERAGE(I13:I14) -> 4726 | J30: 92670.5 | K30: 48943 | L30: 98596.5 | M30: 95194.5 | N30: 99139 | O30: 92228 | P30: 103082.5 | Q30: 98863.5 | R30: 99097 | S30: 105009 | T30: 32634 | X30: =AVERAGE(X13:X14) -> 4726 | Y30: 92670.5 | Z30: 48943 | AA30: 98596.5 | AB30: 95194.5 | AC30: 99139 | AD30: 92228 | AE30: 103082.5 | AF30: 98863.5 | AG30: 99097 | AH30: 105009 | AI30: 32634
B31: CMGC-1 | C31: 1 | D31: ERK2 | I31: =AVERAGE(I15:I16) -> 5266 | J31: 7737 | K31: 5250 | L31: 7710.5 | M31: 7676 | N31: 7757 | O31: 7472 | P31: 7682.5 | Q31: 7705 | R31: 7555.5 | S31: 7908 | T31: 4876 | X31: =AVERAGE(X15:X16) -> 5266 | Y31: 7737 | Z31: 5250 | AA31: 7710.5 | AB31: 7676 | AC31: 7757 | AD31: 7472 | AE31: 7682.5 | AF31: 7705 | AG31: 7555.5 | AH31: 7908 | AI31: 4876
C32: 2 | D32: GSK3b | I32: =AVERAGE(I17:I18) -> 5834 | J32: 127024 | K32: 6113 | L32: 106165.5 | M32: 113183 | N32: 115651 | O32: 72361 | P32: 117027 | Q32: 118992 | R32: 13307.5 | S32: 117090 | T32: 5770 | X32: =AVERAGE(X17:X18) -> 5834 | Y32: 127024 | Z32: 6113 | AA32: 106165.5 | AB32: 113183 | AC32: 115651 | AD32: 72361 | AE32: 117027 | AF32: 118992 | AG32: 13307.5 | AH32: 117090 | AI32: 5770
C33: 3 | D33: JNK1 | I33: =AVERAGE(I19:I20) -> 5535.5 | J33: 69857 | K33: 5089 | L33: 41095 | M33: 6910 | N33: 60707 | O33: 44022.5 | P33: 56014.5 | Q33: 35391 | R33: 5513.5 | S33: 62184.5 | T33: 4943 | X33: =AVERAGE(X19:X20) -> 5535.5 | Y33: 69857 | Z33: 5089 | AA33: 41095 | AB33: 6910 | AC33: 60707 | AD33: 44022.5 | AE33: 56014.5 | AF33: 35391 | AG33: 5513.5 | AH33: 62184.5 | AI33: 4943
C34: 4 | D34: JNK3 | I34: =AVERAGE(I21:I22) -> 5858 | J34: 86855 | K34: 4716 | L34: 43019.5 | M34: 5666.5 | N34: 74384.5 | O34: 56165 | P34: 60090.5 | Q34: 39543 | R34: 5599.5 | S34: 71838 | T34: 4438 | X34: =AVERAGE(X21:X22) -> 5858 | Y34: 86855 | Z34: 4716 | AA34: 43019.5 | AB34: 5666.5 | AC34: 74384.5 | AD34: 56165 | AE34: 60090.5 | AF34: 39543 | AG34: 5599.5 | AH34: 71838 | AI34: 4438
C35: 5 | D35: p38a
C36: 6 | D36: p38b | I36: =I27-$I27 -> 0 | J36: 25040 | K36: 11926.5 | L36: 1500 | M36: 24984 | N36: 29851 | O36: 29866.5 | P36: 28557 | Q36: 32655 | R36: 29084 | S36: 25862.5 | T36: 18339 | X36: =X27-$X27 -> 0 | Y36: =Y27-$X27 -> 25040 | Z36: =Z27-$X27 -> 11926.5 | AA36: 1500 | AB36: 24984 | AC36: 29851 | AD36: 29866.5 | AE36: 28557 | AF36: 32655 | AG36: 29084 | AH36: 25862.5 | AI36: 18339
C37: 7 | D37: p38d | I37: =I28-$I28 -> 0 | J37: 19123.5 | K37: 5259.5 | L37: 2261.5 | M37: 30871 | N37: 19919.5 | O37: 20971 | P37: 21977 | Q37: 20858 | R37: 27103 | S37: 23065.5 | T37: 5104.5 | X37: =X28-$X28 -> 0 | Y37: 19123.5 | Z37: 5259.5 | AA37: 2261.5 | AB37: 30871 | AC37: 19919.5 | AD37: 20971 | AE37: 21977 | AF37: 20858 | AG37: 27103 | AH37: 23065.5 | AI37: 5104.5
C38: 8 | D38: p38g | I38: =I29-$I29 -> 0 | J38: 31599.5 | K38: 27651 | L38: 23271.5 | M38: 14119.5 | N38: 34914 | O38: 43444.5 | P38: 35619.5 | Q38: 43208 | R38: 31806 | S38: 33680 | T38: 29616.5 | X38: 0 | Y38: 31599.5 | Z38: 27651 | AA38: 23271.5 | AB38: 14119.5 | AC38: 34914 | AD38: 43444.5 | AE38: 35619.5 | AF38: 43208 | AG38: 31806 | AH38: 33680 | AI38: 29616.5
B39: CMGC-2 | C39: 1 | D39: CDK1/CyclinA2 | I39: =I30-$I30 -> 0 | J39: 87944.5 | K39: 44217 | L39: 93870.5 | M39: 90468.5 | N39: 94413 | O39: 87502 | P39: 98356.5 | Q39: 94137.5 | R39: 94371 | S39: 100283 | T39: 27908 | X39: 0 | Y39: 87944.5 | Z39: 44217 | AA39: 93870.5 | AB39: 90468.5 | AC39: 94413 | AD39: 87502 | AE39: 98356.5 | AF39: 94137.5 | AG39: 94371 | AH39: 100283 | AI39: 27908
C40: 2 | D40: CDK2/CyclinE1 | I40: =I31-$I31 -> 0 | J40: 2471 | K40: -16 | L40: 2444.5 | M40: 2410 | N40: 2491 | O40: 2206 | P40: 2416.5 | Q40: 2439 | R40: 2289.5 | S40: 2642 | T40: -390 | X40: 0 | Y40: 2471 | Z40: -16 | AA40: 2444.5 | AB40: 2410 | AC40: 2491 | AD40: 2206 | AE40: 2416.5 | AF40: 2439 | AG40: 2289.5 | AH40: 2642 | AI40: -390
C41: 3 | D41: CDK3/CyclinE1 | I41: =I32-$I32 -> 0 | J41: 121190 | K41: 279 | L41: 100331.5 | M41: 107349 | N41: 109817 | O41: 66527 | P41: 111193 | Q41: 113158 | R41: 7473.5 | S41: 111256 | T41: -64 | X41: 0 | Y41: 121190 | Z41: 279 | AA41: 100331.5 | AB41: 107349 | AC41: 109817 | AD41: 66527 | AE41: 111193 | AF41: 113158 | AG41: 7473.5 | AH41: 111256 | AI41: -64
C42: 4 | D42: CDK5/p25 | I42: =I33-$I33 -> 0 | J42: 64321.5 | K42: -446.5 | L42: 35559.5 | M42: 1374.5 | N42: 55171.5 | O42: 38487 | P42: 50479 | Q42: 29855.5 | R42: -22 | S42: 56649 | T42: -592.5 | X42: 0 | Y42: 64321.5 | Z42: -446.5 | AA42: 35559.5 | AB42: 1374.5 | AC42: 55171.5 | AD42: 38487 | AE42: 50479 | AF42: 29855.5 | AG42: -22 | AH42: 56649 | AI42: -592.5
C43: 5 | D43: CDK5/p35 | I43: =I34-$I34 -> 0 | J43: 80997 | K43: -1142 | L43: 37161.5 | M43: -191.5 | N43: 68526.5 | O43: 50307 | P43: 54232.5 | Q43: 33685 | R43: -258.5 | S43: 65980 | T43: -1420 | X43: 0 | Y43: 80997 | Z43: -1142 | AA43: 37161.5 | AB43: -191.5 | AC43: 68526.5 | AD43: 50307 | AE43: 54232.5 | AF43: 33685 | AG43: -258.5 | AH43: 65980 | AI43: -1420
C44: 6 | D44: CDK6/Cyclin D3
C45: 7 | D45: CDK9/Cyclin K | I45: BG | J45: 1 | X45: BG | Y45: 1
C46: 8 | D46: CLK3 | I46: =I36/$J36*100 -> 0 | J46: =J36/$J36*100 -> 100 | K46: =K36/$J36*100 -> 47.62979233 | L46: =L36/$J36*100 -> 5.990415335 | M46: =M36/$J36*100 -> 99.77635783 | N46: 119.2132588 | O46: 119.2751597 | P46: 114.0455272 | Q46: 130.4113419 | R46: 116.1501597 | S46: 103.2847444 | T46: 73.23881789 | X46: =X36/$Y36*100 -> 0 | Y46: =Y36/$Y36*100 -> 100 | Z46: 47.62979233 | AA46: 5.990415335 | AB46: 99.77635783 | AC46: 119.2132588 | AD46: 119.2751597 | AE46: 114.0455272 | AF46: 130.4113419 | AG46: 116.1501597 | AH46: 103.2847444 | AI46: 73.23881789
B47: AGC-1 | C47: 1 | D47: AKT1 | I47: =I37/$J37*100 -> 0 | J47: 100 | K47: 27.50281068 | L47: 11.82576411 | M47: 161.4296546 | N47: 104.162418 | O47: 109.6608884 | P47: 114.9214317 | Q47: 109.0699924 | R47: 141.7261485 | S47: 120.6133814 | T47: 26.69228959 | X47: =X37/$Y37*100 -> 0 | Y47: 100 | Z47: 27.50281068 | AA47: 11.82576411 | AB47: 161.4296546 | AC47: 104.162418 | AD47: 109.6608884 | AE47: 114.9214317 | AF47: 109.0699924 | AG47: 141.7261485 | AH47: 120.6133814 | AI47: 26.69228959
C48: 2 | D48: p70S6Kb | I48: 0 | J48: 100 | K48: 87.50454912 | L48: 73.64515261 | M48: 44.68266903 | N48: 110.48909 | O48: 137.4847703 | P48: 112.7217203 | Q48: 136.7363408 | R48: 100.6534914 | S48: 106.5839649 | T48: 93.72458425 | X48: 0 | Y48: 100 | Z48: 87.50454912 | AA48: 73.64515261 | AB48: 44.68266903 | AC48: 110.48909 | AD48: 137.4847703 | AE48: 112.7217203 | AF48: 136.7363408 | AG48: 100.6534914 | AH48: 106.5839649 | AI48: 93.72458425
C49: 3 | D49: PDK1 | I49: 0 | J49: 100 | K49: 50.27830052 | L49: 106.7383407 | M49: 102.8699919 | N49: 107.355207 | O49: 99.49684176 | P49: 111.839285 | Q49: 107.0419412 | R49: 107.3074496 | S49: 114.0298711 | T49: 31.7336502 | X49: 0 | Y49: 100 | Z49: 50.27830052 | AA49: 106.7383407 | AB49: 102.8699919 | AC49: 107.355207 | AD49: 99.49684176 | AE49: 111.839285 | AF49: 107.0419412 | AG49: 107.3074496 | AH49: 114.0298711 | AI49: 31.7336502
C50: 4 | D50: PKA | I50: 0 | J50: 100 | K50: -0.6475111291 | L50: 98.92755969 | M50: 97.53136382 | N50: 100.8093889 | O50: 89.27559692 | P50: 97.79441522 | Q50: 98.70497774 | R50: 92.65479563 | S50: 106.9202752 | T50: -15.78308377 | X50: 0 | Y50: 100 | Z50: -0.6475111291 | AA50: 98.92755969 | AB50: 97.53136382 | AC50: 100.8093889 | AD50: 89.27559692 | AE50: 97.79441522 | AF50: 98.70497774 | AG50: 92.65479563 | AH50: 106.9202752 | AI50: -15.78308377
C51: 5 | D51: PKC | I51: 0 | J51: 100 | K51: 0.2302170146 | L51: 82.78859642 | M51: 88.57909068 | N51: 90.61556234 | O51: 54.8947933 | P51: 91.75096955 | Q51: 93.37239046 | R51: 6.166762934 | S51: 91.80295404 | T51: -0.05280963776 | X51: 0 | Y51: 100 | Z51: 0.2302170146 | AA51: 82.78859642 | AB51: 88.57909068 | AC51: 90.61556234 | AD51: 54.8947933 | AE51: 91.75096955 | AF51: 93.37239046 | AG51: 6.166762934 | AH51: 91.80295404 | AI51: -0.05280963776
C52: 6 | D52: PRKG1 | I52: 0 | J52: 100 | K52: -0.6941691347 | L52: 55.28400302 | M52: 2.136921558 | N52: 85.77458548 | O52: 59.83535832 | P52: 78.47920213 | Q52: 46.41605062 | R52: -0.03420318245 | S52: 88.07164012 | T52: -0.921153891 | X52: 0 | Y52: 100 | Z52: -0.6941691347 | AA52: 55.28400302 | AB52: 2.136921558 | AC52: 85.77458548 | AD52: 59.83535832 | AE52: 78.47920213 | AF52: 46.41605062 | AG52: -0.03420318245 | AH52: 88.07164012 | AI52: -0.921153891
C53: 7 | D53: ROCK1 | I53: 0 | J53: 100 | K53: -1.409928763 | L53: 45.88009432 | M53: -0.2364285097 | N53: 84.60375076 | O53: 62.10970777 | P53: 66.95618356 | Q53: 41.58796005 | R53: -0.3191476228 | S53: 81.45980715 | T53: -1.753151351 | X53: 0 | Y53: 100 | Z53: -1.409928763 | AA53: 45.88009432 | AB53: -0.2364285097 | AC53: 84.60375076 | AD53: 62.10970777 | AE53: 66.95618356 | AF53: 41.58796005 | AG53: -0.3191476228 | AH53: 81.45980715 | AI53: -1.753151351
C54: 8 | D54: RSK2
B55: AGC-2 | C55: 1 | D55: PKCa | R55: >60% Activity | S55: 20-60% Activity | T55: <20% Activity | AG55: >60% Activity | AH55: 20-60% Activity | AI55: <20% Activity
C56: 2 | D56: PKCb II
C57: 3 | D57: PKCd
C58: 4 | D58: PKCe
C59: 5 | D59: PKCg
C60: 6 | D60: PKCi
C61: 7 | D61: PKCtheta
C62: 8 | D62: PKCz
B63: CAMK-1 | C63: 1 | D63: CHK1
C64: 2 | D64: CHK2
C65: 3 | D65: MAPKAPK2
C66: 4 | D66: MARK1
C67: 5 | D67: MELK
C68: 6 | D68: PASK
C69: 7 | D69: PIM1
C70: 8 | D70: PKCmu (PKD1)
B71: Other/CK-1 | C71: 1 | D71: Aurora A
C72: 2 | D72: Aurora B
C73: 3 | D73: CK2a1
C74: 4 | D74: DNA-PK
C75: 5 | D75: CK1α1
C76: 6 | D76: CK1epsilon
C77: 7 | D77: CK1g1
C78: 8 | D78: VRK2
B79: TKL-1 | C79: 1 | D79: ALK2
C80: 2 | D80: ALK4
C81: 3 | D81: IRAK4
C82: 4 | D82: MLK2
C83: 5 | D83: RIPK2
C84: 6 | D84: TAK1-TAB1
C85: 7 | D85: TGFβR2
C86: 8 | D86: ZAK
B87: STE-1 | C87: 1 | D87: ASK1
C88: 2 | D88: HPK1
C89: 3 | D89: MINK1
C90: 4 | D90: MST1
C91: 5 | D91: NIK
C92: 6 | D92: PAK1/CDC42
C93: 7 | D93: PAK3
C94: 8 | D94: TNIK
A95: Second Launch - Still not complete | B95: CAMK-2 | C95: 1 | D95: AMPK A1/B1/G1
C96: 2 | D96: AMPK A1/B1/G2
C97: 3 | D97: AMPK A2/B1/G1
C98: 4 | D98: CAMK2a
C99: 5 | D99: CAMK2g
C100: 6 | D100: CAMK4
C101: 7 | D101: DAPK1
C102: 8 | D102: STK33
B103: TK-4 | C103: 1 | D103: c-MER
C104: 2 | D104: FGFR1
C105: 3 | D105: FGFR2
C106: 4 | D106: FGFR4
C107: 5 | D107: FLT1
C108: 6 | D108: FMS
C109: 7 | D109: MET
C110: 8 | D110: RET
B111: Other-2 | C111: 1 | D111: CDC7/DBF4
C112: 2 | D112: EIF2AK2
C113: 3 | D113: IKKb
C114: 4 | D114: NEK2
C115: 5 | D115: NEK3
C116: 6 | D116: PLK1
C117: 7 | D117: TBK1
C118: 8 | D118: ULK1
B119: GP-1 | C119: 1 | D119: FGFR1
C120: 2 | D120: JAK3
C121: 3 | D121: LCK
C122: 4 | D122: SYK
C123: 5 | D123: MINK1
C124: 6 | D124: PAK1/CDC42
C125: 7 | D125: IRAK4
C126: 8 | D126: TAK1-TAB1
B127: GP-2 | C127: 1 | D127: CDK2/CyclinE1
C128: 2 | D128: GSK3b
C129: 3 | D129: p38a
C130: 4 | D130: AMPK A1/B1/G2
C131: 5 | D131: CAMK4
C132: 6 | D132: CHK1
C133: 7 | D133: DAPK1
C134: 8 | D134: MAPKAPK2
B135: GP-3 | C135: 1 | D135: AKT1
C136: 2 | D136: PKCa
C137: 3 | D137: ROCK1
C138: 4 | D138: Aurora A
C139: 5 | D139: CK2a1
C140: 6 | D140: IKKb
C141: 7 | D141: CK1a1
C142: 8 | D142: CK1g1
